bitfinex-derivatives/quotes_BTCF0:USTF0_20241116
["timestamp","ask_amount","ask_price","bid_price","bid_amount"]
[1731778007512,0.054988,90896.0,90893.0,0.00165021]
[1731778007914,0.05348612,90895.0,90882.0,0.0051]
[1731778008109,0.16458769,90895.0,90883.0,0.054996]
[1731778008317,0.054988,90896.0,90894.0,0.01045545]
[1731778008505,0.054988,90896.0,90895.0,0.01031604]
[1731778008905,0.054988,90896.0,90895.0,0.06539605]
[1731778009113,0.054988,90896.0,90895.0,0.06539598]
[1731778009425,0.10124742,90896.0,90895.0,0.05508]
[1731778010110,0.15473348,90896.0,90895.0,0.05508]
[1731778010913,0.48477348,90896.0,90895.0,0.00308705]
[1731778011123,0.48477348,90896.0,90882.0,0.0051]
[1731778011124,0.33004,90895.0,90882.0,0.0051]
[1731778011416,0.33004,90895.0,90861.0,0.04579553]
[1731778011417,0.055,90877.0,90876.0,0.0051]
[1731778011610,0.055001,90875.0,90866.0,0.055006]
[1731778011811,0.055001,90875.0,90874.0,0.0119683]
[1731778012221,0.055001,90875.0,90874.0,0.01206441]
[1731778012816,0.055001,90875.0,90874.0,0.06714441]
[1731778013225,0.055001,90875.0,90874.0,0.05682666]
[1731778013708,0.055001,90875.0,90874.0,0.06714455]
[1731778014423,0.055001,90875.0,90874.0,0.05682666]
[1731778014721,0.08568,90877.0,90874.0,0.06714449]
[1731778014948,0.3608,90883.0,90874.0,0.16686853]
[1731778014949,0.054998,90880.0,90874.0,0.16686853]
[1731778015414,0.054998,90880.0,90875.0,0.055]
[1731778015618,0.054998,90880.0,90875.0,0.11008]
[1731778015922,0.054998,90880.0,90876.0,0.12035765]
[1731778016227,0.10093476,90880.0,90876.0,0.16512066]
[1731778016915,0.10093476,90880.0,90877.0,0.01031699]
[1731778017117,0.10093476,90880.0,90878.0,0.01031699]
[1731778017316,0.10093476,90880.0,90879.0,0.01031699]
[1731778017518,0.054998,90880.0,90879.0,0.05508]
[1731778017718,0.054998,90880.0,90879.0,0.06539689]
[1731778018715,0.054998,90880.0,90879.0,0.05508]
[1731778018919,0.04732892,90881.0,90879.0,0.05508]
[1731778019125,0.50231701,90883.0,90880.0,0.01031725]
[1731778019324,0.501517,90883.0,90881.0,0.01031725]
[1731778019635,0.51361081,90883.0,90882.0,0.01375616]
[1731778019820,0.51361081,90883.0,90882.0,0.06883616]
[1731778020131,0.51361081,90883.0,90882.0,0.05508]
[1731778020719,0.51361081,90883.0,90882.0,0.05851915]
[1731778021124,0.51361081,90883.0,90882.0,0.05508]
[1731778030133,0.51361081,90883.0,90874.0,0.00174666]
[1731778030134,0.45861381,90883.0,90874.0,0.00174666]
[1731778030343,0.055001,90875.0,90874.0,0.00174666]
[1731778030532,0.055001,90875.0,90874.0,0.01206431]
[1731778032048,0.055001,90875.0,90874.0,0.06672431]
[1731778032637,0.140641,90875.0,90874.0,0.06672431]
[1731778035126,0.501441,90875.0,90874.0,0.06672431]
[1731778038534,0.66586756,90875.0,90874.0,0.06672431]
[1731778038941,0.501441,90875.0,90874.0,0.06672431]
[1731778039242,0.66586756,90875.0,90874.0,0.06672431]
[1731778039432,0.55493386,90875.0,90874.0,0.06672431]
[1731778039632,0.66638386,90875.0,90874.0,0.06672431]
[1731778040340,0.140641,90875.0,90874.0,0.06672431]
[1731778044233,0.30558386,90875.0,90874.0,0.06672431]
[1731778044430,0.08564,90875.0,90874.0,0.06672431]
[1731778044635,0.24369012,90875.0,90874.0,0.06672431]
[1731778044846,0.13373485,90875.0,90874.0,0.06672431]
[1731778045947,0.29869112,90875.0,90874.0,0.06672431]
[1731778046130,0.2986961,90875.0,90874.0,0.06672431]
[1731778046740,0.13373485,90875.0,90874.0,0.06672431]
[1731778047042,0.29870576,90875.0,90874.0,0.06672431]
[1731778047644,0.13373485,90875.0,90874.0,0.06672431]
[1731778047941,0.13373485,90875.0,90874.0,0.05640666]
[1731778048243,0.13373485,90875.0,90874.0,0.06672452]
[1731778048244,0.055001,90875.0,90874.0,0.06672452]
[1731778048447,0.30560001,90875.0,90874.0,0.06672452]
[1731778048634,0.140601,90875.0,90874.0,0.06672452]
[1731778049645,0.30560001,90875.0,90874.0,0.06672452]
[1731778050231,0.19409455,90875.0,90874.0,0.06672452]
[1731778050634,0.16503317,90875.0,90874.0,0.23176739]
[1731778051037,0.0856,90876.0,90875.0,0.055001]
[1731778051246,0.3608,90877.0,90876.0,0.055]
[1731778051443,0.16503317,90882.0,90881.0,0.054997]
[1731778051649,0.16503317,90884.0,90883.0,0.054996]
[1731778051834,0.16503317,90886.0,90883.0,0.054996]
[1731778052039,0.054994,90887.0,90883.0,0.109656]
[1731778052344,0.0856,90892.0,90883.0,0.21969787]
[1731778052345,0.054995,90886.0,90883.0,0.21969787]
[1731778052837,0.054995,90884.0,90883.0,0.21969787]
[1731778054344,0.054995,90884.0,90883.0,0.23001408]
[1731778054345,0.18688411,90884.0,90883.0,0.23001408]
[1731778054545,0.054995,90884.0,90883.0,0.23001408]
[1731778054741,0.13188911,90886.0,90883.0,0.23001408]
[1731778054942,0.054995,90885.0,90884.0,0.01031621]
[1731778055142,0.13188911,90886.0,90884.0,0.06497621]
[1731778055345,0.13188911,90888.0,90885.0,0.01031621]
[1731778055546,0.13186325,90889.0,90887.0,0.12367003]
[1731778055855,0.14059,90894.0,90888.0,0.01031621]
[1731778056041,0.14059,90894.0,90892.0,0.12366703]
[1731778056348,0.14059,90894.0,90893.0,0.01031621]
[1731778056653,0.14059,90894.0,90893.0,0.17499568]
[1731778057044,0.05499,90894.0,90893.0,0.17499568]
[1731778057351,0.00165086,90896.0,90894.0,0.054989]
[1731778057549,0.00165086,90896.0,90895.0,0.01031621]
[1731778057754,0.00165086,90896.0,90895.0,0.06497621]
[1731778057955,0.00165086,90896.0,90895.0,0.17499507]
[1731778060844,0.00165086,90896.0,90895.0,0.22129885]
[1731778061557,0.00165086,90896.0,90895.0,0.17499507]
[1731778065043,0.054988,90897.0,90895.0,0.17499507]
[1731778065358,0.054988,90897.0,90896.0,0.01031621]
[1731778065549,0.054988,90897.0,90896.0,0.06497621]
[1731778065956,0.054988,90897.0,90896.0,0.17499205]
[1731778066760,0.04682182,90901.0,90896.0,0.17499205]
[1731778066962,0.054986,90900.0,90897.0,0.01031621]
[1731778067163,0.054986,90900.0,90898.0,0.01031621]
[1731778067355,0.054986,90900.0,90898.0,0.05466]
[1731778070265,0.60753252,90904.0,90899.0,0.054986]
[1731778070468,0.054984,90903.0,90899.0,0.054986]
[1731778070653,0.054984,90903.0,90899.0,0.109646]
[1731778071060,0.054985,90902.0,90899.0,0.109646]
[1731778071662,0.054985,90901.0,90899.0,0.109646]
[1731778072067,0.054985,90901.0,90900.0,0.01031474]
[1731778072263,0.054985,90901.0,90900.0,0.06497474]
[1731778076166,0.47558927,90904.0,90893.0,0.05499]
[1731778076167,0.054988,90897.0,90893.0,0.05499]
[1731778076760,0.054988,90896.0,90893.0,0.05499]
[1731778077368,0.13163307,90897.0,90890.0,0.06867603]
[1731778077574,0.054989,90894.0,90890.0,0.12366703]
[1731778077872,0.05499,90893.0,90891.0,0.11001765]
[1731778078276,0.06867603,90894.0,90891.0,0.05508]
[1731778078568,0.05499,90893.0,90891.0,0.05508]
[1731778079072,0.18662307,90893.0,90891.0,0.05508]
[1731778079569,0.05499,90893.0,90891.0,0.03281846]
[1731778079772,0.3608,90892.0,90891.0,0.03281846]
[1731778080070,0.054995,90884.0,90883.0,0.0051]
[1731778080268,0.054995,90884.0,90876.0,0.0051]
[1731778080269,0.055,90877.0,90876.0,0.0051]
[1731778080480,0.13180733,90879.0,90872.0,0.06867603]
[1731778080670,0.054997,90882.0,90878.0,0.06867603]
[1731778080868,0.18680433,90882.0,90878.0,0.06867603]
[1731778081063,0.13180733,90881.0,90878.0,0.06867603]
[1731778081369,0.054997,90881.0,90878.0,0.06867603]
[1731778081564,0.13180733,90882.0,90878.0,0.06867603]
[1731778081774,0.055001,90876.0,90873.0,0.06867603]
[1731778081971,0.3608,90875.0,90868.0,0.07377603]
[1731778082365,0.055001,90876.0,90874.0,0.05676666]
[1731778083269,0.10237007,90876.0,90874.0,0.05676666]
[1731778085069,0.13180733,90880.0,90874.0,0.05676666]
[1731778085070,0.13180733,90881.0,90879.0,0.054998]
[1731778085270,0.49260733,90885.0,90879.0,0.17869403]
[1731778085465,0.40695792,90885.0,90879.0,0.110018]
[1731778085669,0.054998,90881.0,90879.0,0.05502]
[1731778086073,0.054998,90881.0,90880.0,0.01031702]
[1731778086374,0.054998,90881.0,90880.0,0.06533702]
[1731778090974,0.40775793,90885.0,90880.0,0.06533702]
[1731778090975,0.36160001,90885.0,90880.0,0.17537162]
[1731778091275,0.3608,90885.0,90884.0,0.06867603]
[1731778091481,0.3608,90885.0,90884.0,0.13401305]
[1731778091973,0.3608,90885.0,90884.0,0.24404523]
[1731778095182,0.054991,90892.0,90885.0,0.054995]
[1731778095484,0.054991,90892.0,90891.0,0.06867603]
[1731778095673,0.054991,90892.0,90891.0,0.07899305]
[1731778095982,0.04709657,90896.0,90894.0,0.054989]
[1731778096197,0.054987,90898.0,90894.0,0.054989]
[1731778096482,0.054987,90898.0,90897.0,0.06867603]
[1731778096780,0.054987,90898.0,90897.0,0.13401098]
[1731778096984,0.49425795,90903.0,90901.0,0.054985]
[1731778097183,0.49425795,90903.0,90902.0,0.07899087]
[1731778097184,0.00165062,90903.0,90902.0,0.07899087]
[1731778097375,0.00165062,90903.0,90902.0,0.13401087]
[1731778097574,0.00165062,90903.0,90902.0,0.24401945]
[1731778100576,0.00165062,90903.0,90902.0,0.17534342]
[1731778103985,0.00165062,90903.0,90902.0,0.16502858]
[1731778109792,0.00165062,90903.0,90902.0,0.17534145]
[1731778109989,0.0051,90917.0,90916.0,0.12365203]
[1731778110180,0.054973,90922.0,90916.0,0.12365203]
[1731778110181,0.054973,90922.0,90920.0,0.054973]
[1731778110384,0.054973,90922.0,90921.0,0.0789889]
[1731778112188,0.10082606,90922.0,90921.0,0.0789889]
[1731778112487,0.10082606,90922.0,90921.0,0.06867603]
[1731778112692,0.10082606,90922.0,90921.0,0.13400815]
[1731778113483,0.10082606,90922.0,90921.0,0.12369603]
[1731778114388,0.10082606,90922.0,90921.0,0.05502]
[1731778121399,0.10082606,90922.0,90921.0,0.06533217]
[1731778123402,0.10082606,90922.0,90921.0,0.05502]
[1731778123595,0.10082606,90922.0,90921.0,0.06533258]
[1731778123902,0.3608,90925.0,90921.0,0.12030558]
[1731778124094,0.40623367,90925.0,90922.0,0.01031258]
[1731778124296,0.46120467,90925.0,90923.0,0.01031258]
[1731778124497,0.415771,90924.0,90923.0,0.05502]
[1731778124697,0.415771,90924.0,90923.0,0.06533228]
[1731778125005,0.48444703,90924.0,90923.0,0.05502]
[1731778128401,0.054977,90916.0,90911.0,0.0051]
[1731778128703,0.48294364,90924.0,90912.0,0.12029553]
[1731778128704,0.13175119,90915.0,90912.0,0.12029553]
[1731778128897,0.054977,90914.0,90913.0,0.01031297]
[1731778129802,0.054981,90908.0,90900.0,0.12366203]
[1731778130004,0.13176977,90908.0,90904.0,0.01031374]
[1731778130200,0.054982,90906.0,90904.0,0.10999466]
[1731778130396,0.054982,90906.0,90900.0,0.12366203]
[1731778130597,0.054982,90906.0,90903.0,0.11000495]
[1731778130907,0.054982,90906.0,90903.0,0.05506121]
[1731778131105,0.054982,90906.0,90903.0,0.16506616]
[1731778132404,0.054982,90906.0,90904.0,0.0103139]
[1731778132597,0.054982,90906.0,90905.0,0.0103139]
[1731778132902,0.10135465,90906.0,90905.0,0.06537511]
[1731778133100,0.10135465,90906.0,90905.0,0.17538066]
[1731778133500,0.53083068,90906.0,90905.0,0.06537511]
[1731778133699,0.53083068,90906.0,90905.0,0.05506121]
[1731778133700,0.86083068,90906.0,90905.0,0.05506121]
[1731778133903,0.98298185,90906.0,90905.0,0.03993729]
[1731778134100,1.18069616,90906.0,90905.0,0.03993729]
[1731778134299,1.18059716,90906.0,90905.0,0.03993729]
[1731778134516,0.054984,90903.0,90902.0,0.00164979]
[1731778134701,0.05499,90893.0,90892.0,0.0051]
[1731778134901,0.05499,90893.0,90882.0,0.0051]
[1731778134902,0.054995,90884.0,90882.0,0.0051]
[1731778135096,0.054995,90884.0,90883.0,0.01031684]
[1731778135512,0.054995,90884.0,90883.0,0.12032118]
[1731778136611,0.054995,90884.0,90883.0,0.17538239]
[1731778137013,0.054995,90884.0,90883.0,0.06537805]
[1731778137711,0.00080001,90885.0,90883.0,0.23040502]
[1731778137897,0.3608,90894.0,90884.0,0.01031684]
[1731778138107,0.3608,90894.0,90893.0,0.06867603]
[1731778138302,0.3608,90894.0,90893.0,0.12373724]
[1731778138502,0.3608,90894.0,90893.0,0.24408505]
[1731778139808,0.1321284,90897.0,90893.0,0.24408505]
[1731778140006,0.1321284,90897.0,90894.0,0.01031684]
[1731778140007,0.1871164,90897.0,90894.0,0.01031684]
[1731778140201,0.1017164,90897.0,90895.0,0.01031684]
[1731778140408,0.1017164,90897.0,90895.0,0.054989]
[1731778140409,0.08536,90896.0,90895.0,0.054989]
[1731778140600,0.08536,90896.0,90895.0,0.12036541]
[1731778140804,0.08536,90896.0,90895.0,0.23038125]
[1731778141915,0.08536,90896.0,90895.0,0.22006605]
[1731778142117,0.49736178,90903.0,90897.0,0.054987]
[1731778142413,0.054986,90900.0,90897.0,0.11004821]
[1731778142609,0.054986,90899.0,90898.0,0.054986]
[1731778142809,0.054986,90899.0,90898.0,0.11004721]
[1731778143204,0.054986,90899.0,90898.0,0.06537636]
[1731778145538,0.415786,90899.0,90898.0,0.06537636]
[1731778145808,0.415786,90899.0,90898.0,0.03121692]
[1731778145809,0.745826,90899.0,90898.0,0.03121692]
[1731778146011,0.745826,90899.0,90898.0,0.02321692]
[1731778146201,0.745826,90899.0,90898.0,0.0015266]
[1731778146604,0.79931524,90899.0,90898.0,0.0015266]
[1731778148716,1.09931524,90899.0,90898.0,0.0015266]
[1731778148912,1.20396776,90899.0,90898.0,0.0015266]
[1731778150015,1.20396918,90899.0,90898.0,0.0015266]
[1731778150316,1.15047852,90899.0,90898.0,0.0015266]
[1731778150518,1.31471955,90899.0,90898.0,0.0015266]
[1731778150706,1.01471955,90899.0,90898.0,0.0015266]
[1731778150906,0.68467955,90899.0,90898.0,0.0015266]
[1731778151112,0.60579852,90899.0,90898.0,0.0015266]
[1731778152110,0.73718477,90899.0,90898.0,0.0015266]
[1731778152615,0.60579852,90899.0,90898.0,0.0015266]
[1731778152818,0.73720801,90899.0,90898.0,0.0015266]
[1731778153413,0.73722579,90899.0,90898.0,0.0015266]
[1731778154517,0.60579852,90899.0,90898.0,0.0015266]
[1731778159723,0.52043852,90899.0,90898.0,0.0015266]
[1731778160029,0.60579852,90899.0,90898.0,0.0015266]
[1731778161316,0.77003955,90899.0,90898.0,0.0015266]
[1731778161513,0.65928301,90899.0,90898.0,0.0015266]
[1731778164523,0.57392301,90899.0,90898.0,0.0015266]
[1731778164729,0.65928301,90899.0,90898.0,0.0015266]
[1731778168131,0.60579852,90899.0,90898.0,0.0015266]
[1731778168431,0.65928081,90899.0,90898.0,0.0015266]
[1731778168729,0.78800716,90899.0,90898.0,0.0015266]
[1731778169219,0.67676357,90899.0,90898.0,0.0015266]
[1731778169530,0.62328079,90899.0,90898.0,0.0015266]
[1731778169723,0.67676371,90899.0,90898.0,0.0015266]
[1731778170327,0.62328079,90899.0,90898.0,0.0015266]
[1731778170529,0.67676326,90899.0,90898.0,0.0015266]
[1731778173021,0.59140326,90899.0,90898.0,0.0015266]
[1731778173217,0.67668535,90899.0,90898.0,0.0015266]
[1731778173422,0.62169935,90899.0,90889.0,0.0051]
[1731778173622,0.0686525,90890.0,90888.0,0.054993]
[1731778173834,0.13183577,90889.0,90888.0,0.054993]
[1731778174024,0.13183577,90889.0,90888.0,0.06530927]
[1731778174224,0.0686525,90890.0,90888.0,0.06530927]
[1731778174426,0.0686525,90890.0,90889.0,0.01031627]
[1731778174837,0.0686525,90890.0,90889.0,0.06509627]
[1731778176734,0.11517999,90890.0,90889.0,0.06509627]
[1731778177239,0.10151949,90890.0,90889.0,0.06509627]
[1731778177535,0.17017199,90890.0,90889.0,0.06509627]
[1731778178334,0.25545199,90890.0,90889.0,0.06509627]
[1731778179643,0.42024793,90890.0,90889.0,0.06509627]
[1731778180327,0.30893721,90890.0,90889.0,0.06509627]
[1731778181827,0.24028471,90890.0,90889.0,0.06509627]
[1731778188642,0.3518057,90890.0,90889.0,0.06509627]
[1731778188842,0.18679949,90890.0,90889.0,0.06509627]
[1731778189037,0.35180696,90890.0,90889.0,0.06509627]
[1731778189234,0.35180937,90890.0,90889.0,0.06509627]
[1731778190142,0.18679949,90890.0,90889.0,0.06509627]
[1731778191343,0.35180937,90890.0,90889.0,0.06509627]
[1731778191535,0.18679949,90890.0,90889.0,0.06509627]
[1731778193247,0.35180937,90890.0,90889.0,0.06509627]
[1731778193844,0.18679949,90890.0,90889.0,0.06509627]
[1731778194444,0.35180937,90890.0,90889.0,0.06509627]
[1731778195848,0.24028331,90890.0,90889.0,0.06509627]
[1731778196941,0.24028313,90890.0,90889.0,0.06509627]
[1731778197744,0.30893563,90890.0,90889.0,0.06509627]
[1731778198950,0.50658145,90890.0,90889.0,0.06509627]
[1731778200250,0.30893563,90890.0,90889.0,0.06509627]
[1731778200453,0.70766813,90890.0,90889.0,0.06509627]
[1731778200644,0.70766813,90890.0,90878.0,0.0051]
[1731778200645,1.08337791,90890.0,90878.0,0.0051]
[1731778200840,0.055001,90875.0,90874.0,9.611e-05]
[1731778201053,0.19368464,90875.0,90874.0,0.01041418]
[1731778201539,0.19368464,90875.0,90874.0,9.611e-05]
[1731778202251,0.24026459,90875.0,90874.0,0.0104145]
[1731778202550,0.24026459,90875.0,90874.0,9.611e-05]
[1731778202551,0.30891709,90875.0,90874.0,9.611e-05]
[1731778202852,0.25543345,90875.0,90874.0,0.01041444]
[1731778203054,0.4202473,90875.0,90874.0,0.06546596]
[1731778203255,0.25543345,90875.0,90874.0,0.06546597]
[1731778206349,0.25543345,90875.0,90874.0,0.05514763]
[1731778206554,0.18678095,90875.0,90874.0,0.05514763]
[1731778206757,0.17023345,90875.0,90874.0,0.05514763]
[1731778206943,0.25543345,90875.0,90874.0,0.05514763]
[1731778208848,0.38710356,90875.0,90874.0,0.05514763]
[1731778209047,0.38710356,90875.0,90874.0,0.07440863]
[1731778209257,0.25543345,90875.0,90874.0,0.07440863]
[1731778210544,0.25543345,90875.0,90874.0,0.07440855]
[1731778210747,0.25557007,90875.0,90874.0,0.07440855]
[1731778210949,0.25557007,90875.0,90874.0,0.05514763]
[1731778212953,0.12373056,90875.0,90874.0,0.05514763]
[1731778213260,0.20893056,90875.0,90874.0,0.05514763]
[1731778214360,0.34054101,90875.0,90874.0,0.05514763]
[1731778214755,0.20893056,90875.0,90874.0,0.05514763]
[1731778215062,0.34053721,90875.0,90874.0,0.05514763]
[1731778215455,0.20893056,90875.0,90874.0,0.05514763]
[1731778216064,0.34053543,90875.0,90874.0,0.05514763]
[1731778216248,0.20893056,90875.0,90874.0,0.05514763]
[1731778216751,0.3405353,90875.0,90874.0,0.05514763]
[1731778217157,0.20893056,90875.0,90874.0,0.05514763]
[1731778217656,0.34053672,90875.0,90874.0,0.05514763]
[1731778218361,0.055007,90865.0,90864.0,0.00165042]
[1731778218555,0.45969427,90865.0,90864.0,0.02091225]
[1731778218752,0.42529768,90865.0,90864.0,0.02091225]
[1731778219464,0.42529768,90865.0,90864.0,0.01550329]
[1731778219758,0.48030468,90865.0,90864.0,0.01550329]
[1731778220156,0.48030468,90865.0,90864.0,0.07055481]
[1731778220763,0.48030468,90865.0,90864.0,0.0671152]
[1731778220951,0.48030468,90865.0,90864.0,0.0705549]
[1731778223669,0.54895718,90865.0,90864.0,0.0705549]
[1731778223867,0.54895718,90865.0,90864.0,0.06890448]
[1731778224260,0.54895718,90865.0,90864.0,0.06890449]
[1731778224568,0.54895718,90865.0,90864.0,0.06546478]
[1731778224569,0.553112,90865.0,90864.0,0.06546478]
[1731778224869,0.553112,90865.0,90864.0,0.06890449]
[1731778225767,0.4844595,90865.0,90864.0,0.06890449]
[1731778226367,0.53136366,90865.0,90864.0,0.06890449]
[1731778227282,0.66297851,90865.0,90864.0,0.06890449]
[1731778227455,0.66318404,90865.0,90864.0,0.06890449]
[1731778228083,0.53952454,90865.0,90864.0,0.19256499]
[1731778228368,0.53952454,90865.0,90864.0,0.30261897]
[1731778228369,0.49290416,90865.0,90864.0,0.30261897]
[1731778228755,0.13210416,90865.0,90864.0,0.30261897]
[1731778229072,0.131871,90872.0,90864.0,0.37127147]
[1731778229277,0.00013662,90875.0,90874.0,0.1236535]
[1731778229567,0.00013662,90875.0,90874.0,0.4545143]
[1731778229773,0.13194501,90886.0,90874.0,0.76758257]
[1731778229974,0.13194501,90886.0,90885.0,0.054995]
[1731778230169,0.0686525,90891.0,90885.0,0.054995]
[1731778230170,0.13194501,90887.0,90885.0,0.06875355]
[1731778230475,0.18693701,90890.0,90887.0,0.054994]
[1731778230669,0.18693701,90890.0,90888.0,0.01375855]
[1731778230670,0.054992,90890.0,90888.0,0.01375855]
[1731778230865,0.054992,90890.0,90889.0,0.01375855]
[1731778231173,0.054992,90890.0,90889.0,0.06881007]
[1731778232475,0.054992,90890.0,90889.0,0.05849123]
[1731778232776,0.1236445,90890.0,90889.0,0.05849123]
[1731778233769,0.25530809,90890.0,90889.0,0.06880711]
[1731778233972,0.054992,90890.0,90889.0,0.06880711]
[1731778234179,0.13166318,90891.0,90889.0,0.17883082]
[1731778234366,0.13166318,90891.0,90889.0,0.16507523]
[1731778234564,0.13166318,90892.0,90891.0,0.054991]
[1731778234870,0.40816144,90893.0,90891.0,0.12929866]
[1731778235071,0.40816144,90893.0,90892.0,0.01925614]
[1731778235261,0.40816144,90893.0,90892.0,0.07430766]
[1731778235766,0.3608,90893.0,90892.0,0.17882718]
[1731778237279,0.054989,90895.0,90892.0,0.17882718]
[1731778237471,0.054989,90895.0,90893.0,0.01375438]
[1731778237772,0.10059649,90895.0,90894.0,0.01375431]
[1731778237971,0.10059649,90895.0,90894.0,0.06880583]
[1731778238470,0.10059649,90895.0,90894.0,0.06536733]
[1731778238671,0.04560749,90895.0,90894.0,0.06880589]
[1731778238870,0.15550312,90896.0,90894.0,0.06880589]
[1731778239064,0.15550312,90896.0,90895.0,0.01375437]
[1731778239265,0.15550312,90896.0,90895.0,0.06880589]
[1731778240468,0.15550312,90896.0,90895.0,0.05849008]
[1731778240767,0.20079921,90896.0,90895.0,0.05849008]
[1731778241173,0.20079921,90896.0,90895.0,0.05848999]
[1731778242167,0.11559921,90896.0,90895.0,0.05848999]
[1731778242477,0.20067921,90896.0,90895.0,0.05848999]
[1731778244373,0.20067921,90896.0,90895.0,0.05849008]
[1731778244780,0.20067921,90896.0,90895.0,0.05505152]
[1731778245074,0.20067921,90896.0,90895.0,0.05849007]
[1731778250976,0.16629371,90896.0,90895.0,0.05849007]
[1731778251178,0.16629371,90896.0,90895.0,0.05849005]
[1731778251775,0.16629371,90896.0,90895.0,0.05505152]
[1731778252880,0.16629371,90896.0,90895.0,0.06536718]
[1731778253382,0.22128171,90896.0,90895.0,0.06536718]
[1731778254173,0.16629371,90896.0,90895.0,0.06536718]
[1731778254784,0.16629371,90896.0,90895.0,0.06880574]
[1731778254986,0.16629371,90896.0,90895.0,0.06536718]
[1731778255185,0.08121371,90896.0,90895.0,0.06536718]
[1731778255480,0.16629371,90896.0,90895.0,0.06880574]
[1731778256182,0.08121371,90896.0,90895.0,0.06880574]
[1731778258291,0.04529609,90896.0,90895.0,0.06536718]
[1731778258490,0.16481385,90897.0,90895.0,0.12379469]
[1731778258785,0.16481385,90897.0,90896.0,0.01375417]
[1731778258978,0.16481385,90897.0,90896.0,0.06880569]
[1731778259485,0.05348063,90897.0,90896.0,0.06880569]
[1731778260081,0.05348063,90897.0,90896.0,0.12379369]
[1731778260278,0.13856063,90897.0,90896.0,0.12379369]
[1731778260482,0.08508,90897.0,90896.0,0.12379369]
[1731778260782,0.30504988,90897.0,90896.0,0.12379369]
[1731778261085,0.054988,90897.0,90896.0,0.1237936]
[1731778261289,0.52658283,90900.0,90898.0,0.054987]
[1731778261479,0.29891205,90900.0,90899.0,0.06873946]
[1731778261788,0.05510642,90901.0,90900.0,0.054986]
[1731778261981,0.05510642,90901.0,90900.0,0.06530104]
[1731778262187,0.05510642,90901.0,90900.0,0.12035256]
[1731778262577,0.05510642,90901.0,90900.0,0.18913085]
[1731778262779,0.12375892,90901.0,90900.0,0.07911925]
[1731778263903,0.12375892,90901.0,90900.0,0.07911955]
[1731778264187,0.12375892,90901.0,90900.0,0.06536656]
[1731778264393,0.12375892,90901.0,90900.0,0.07911958]
[1731778264782,0.05510642,90901.0,90900.0,0.07911958]
[1731778266092,0.00012042,90901.0,90900.0,0.24411597]
[1731778266588,0.00012042,90901.0,90900.0,0.24411559]
[1731778266985,0.00012042,90901.0,90900.0,0.31276809]
[1731778267475,0.04532918,90908.0,90907.0,0.054982]
[1731778267784,0.04532918,90908.0,90907.0,0.49818571]
[1731778267986,0.04532918,90908.0,90907.0,1.27838458]
[1731778268289,0.1980464,90933.0,90907.0,1.27838458]
[1731778268290,0.17008282,90932.0,90924.0,0.054971]
[1731778268588,0.0686525,90927.0,90924.0,0.02750067]
[1731778268795,0.05497,90926.0,90924.0,0.02750066]
[1731778268985,0.05497,90926.0,90924.0,0.13750258]
[1731778269183,0.05497,90926.0,90924.0,0.01718859]
[1731778269384,0.43110271,90925.0,90924.0,0.07220859]
[1731778269789,0.054978,90913.0,90912.0,0.0051]
[1731778269986,0.1536125,90913.0,90912.0,0.02750233]
[1731778270189,0.08496,90913.0,90912.0,0.02750233]
[1731778270696,0.1536125,90913.0,90912.0,0.02750233]
[1731778270891,0.1536125,90913.0,90900.0,0.00520604]
[1731778271086,0.0686525,90901.0,90900.0,0.00520604]
[1731778271283,0.1536125,90901.0,90900.0,0.01895937]
[1731778271485,0.11922917,90901.0,90900.0,0.07400968]
[1731778271682,0.11922917,90901.0,90900.0,0.08266319]
[1731778271887,0.27574419,90901.0,90900.0,0.07922486]
[1731778272086,0.27574419,90901.0,90900.0,0.05515635]
[1731778272087,0.27574444,90901.0,90900.0,0.05515635]
[1731778272284,0.27574444,90901.0,90900.0,0.00097725]
[1731778272590,0.1536125,90901.0,90900.0,0.00097725]
[1731778272800,0.24305732,90901.0,90900.0,0.00097725]
[1731778273297,0.44055314,90901.0,90900.0,0.00109249]
[1731778273495,0.24305732,90901.0,90900.0,0.00109249]
[1731778273888,0.13844566,90901.0,90900.0,0.00109249]
[1731778274586,0.18546629,90901.0,90900.0,0.00109249]
[1731778275094,0.29654792,90901.0,90900.0,0.01484649]
[1731778275597,0.13198063,90901.0,90900.0,0.01484649]
[1731778276190,0.04702063,90901.0,90900.0,0.12485688]
[1731778276385,0.6111273,90903.0,90901.0,0.054985]
[1731778276593,0.6111273,90903.0,90902.0,0.013754]
[1731778276594,0.61032729,90903.0,90902.0,0.013754]
[1731778276800,0.44576,90903.0,90902.0,0.013754]
[1731778276997,0.49180237,90903.0,90902.0,0.12376439]
[1731778277300,0.65636966,90903.0,90902.0,0.13407909]
[1731778277904,0.49180237,90903.0,90902.0,0.13407909]
[1731778278099,0.49180237,90903.0,90902.0,0.13407842]
[1731778278604,0.13100237,90903.0,90902.0,0.12478372]
[1731778278901,0.022006,90909.0,90905.0,0.054982]
[1731778278902,0.08496,90907.0,90905.0,0.054982]
[1731778279196,0.08496,90907.0,90906.0,0.01375333]
[1731778279391,0.08496,90907.0,90906.0,0.02508745]
[1731778280789,0.08496,90907.0,90906.0,0.13509058]
[1731778283205,0.08496,90907.0,90906.0,0.12477646]
[1731778283791,0.08496,90907.0,90906.0,0.13509045]
[1731778285094,0.08496,90907.0,90906.0,0.12133712]
[1731778285498,0.08496,90907.0,90906.0,0.13508917]
[1731778286593,0.054981,90908.0,90906.0,0.12133712]
[1731778286899,0.054981,90908.0,90906.0,0.11102313]
[1731778287103,0.08496,90909.0,90906.0,0.11102313]
[1731778287302,0.00080001,90910.0,90906.0,0.11102313]
[1731778287504,0.08496,90909.0,90906.0,0.11102313]
[1731778287702,0.16456984,90910.0,90906.0,0.11102313]
[1731778287904,0.08496,90912.0,90906.0,0.47182313]
[1731778288120,0.08496,90912.0,90911.0,0.054979]
[1731778288413,0.08496,90912.0,90911.0,0.055999]
[1731778288608,0.08496,90912.0,90911.0,0.00102]
[1731778288809,0.08496,90912.0,90911.0,0.11102132]
[1731778288997,0.08496,90912.0,90911.0,0.00102]
[1731778289908,0.08496,90912.0,90911.0,0.01133343]
[1731778292003,0.08496,90912.0,90911.0,0.01103343]
[1731778298799,0.08496,90912.0,90911.0,0.02478464]
[1731778300215,0.139938,90912.0,90911.0,0.02478464]
[1731778300715,0.139938,90912.0,90911.0,0.01103343]
[1731778302316,0.27159055,90912.0,90911.0,0.01103343]
[1731778302623,0.139938,90912.0,90911.0,0.01103343]
[1731778302822,0.27159055,90912.0,90911.0,0.01103343]
[1731778303140,0.139938,90912.0,90911.0,0.01103343]
[1731778308521,0.139938,90912.0,90911.0,0.00072]
[1731778309516,0.139938,90912.0,90911.0,0.0110335]
[1731778309821,0.139938,90912.0,90911.0,0.02478485]